[Event "Early-Titled-Tuesday-Blitz-March-05-2024"]
[Site "Chess.com"]
[Date "2024.03.05"]
[Round "5"]
[White "wild3000"]
[Black "Zq1"]
[Result "0-1"]
[WhiteElo "2485"]
[BlackElo "2633"]
[TimeControl "180+1"]
[EndTime "8:59:43 PST"]
[Termination "Zq1 won by checkmate"]

1. e4 {[%clk 0:02:58.7]} 1... c5 {[%clk 0:02:58.9]} 2. Nf3 {[%clk 0:02:58.5]}
2... d6 {[%clk 0:02:59.1]} 3. d4 {[%clk 0:02:57.9]} 3... cxd4 {[%clk 0:02:59.1]}
4. Nxd4 {[%clk 0:02:58.8]} 4... Nf6 {[%clk 0:02:58.9]} 5. Nc3 {[%clk 0:02:58.7]}
5... Nc6 {[%clk 0:02:58.7]} 6. Nxc6 {[%clk 0:02:57.8]} 6... bxc6 {[%clk
0:02:58.2]} 7. Bd3 {[%clk 0:02:54.4]} 7... g6 {[%clk 0:02:55.7]} 8. O-O {[%clk
0:02:54.4]} 8... Bg7 {[%clk 0:02:55.8]} 9. Rb1 {[%clk 0:02:53.7]} 9... O-O
{[%clk 0:02:54.7]} 10. b3 {[%clk 0:02:53.7]} 10... Nd7 {[%clk 0:02:38.3]} 11.
Bb2 {[%clk 0:02:50.5]} 11... Nc5 {[%clk 0:02:37.7]} 12. Ne2 {[%clk 0:02:47.6]}
12... Nxd3 {[%clk 0:02:25.4]} 13. cxd3 {[%clk 0:02:44.9]} 13... e5 {[%clk
0:02:21.9]} 14. d4 {[%clk 0:02:36]} 14... a5 {[%clk 0:02:17.9]} 15. dxe5 {[%clk
0:02:34.1]} 15... dxe5 {[%clk 0:02:16.9]} 16. Qxd8 {[%clk 0:02:33.4]} 16... Rxd8
{[%clk 0:02:16]} 17. Rfd1 {[%clk 0:02:33.9]} 17... Ba6 {[%clk 0:02:08.1]} 18.
Nc3 {[%clk 0:02:18.3]} 18... Bd3 {[%clk 0:02:06.2]} 19. Ra1 {[%clk 0:02:17.6]}
19... Bc2 {[%clk 0:02:01.4]} 20. Re1 {[%clk 0:02:01.5]} 20... Bh6 {[%clk
0:01:49.5]} 21. Bc1 {[%clk 0:01:50.1]} 21... Bd2 {[%clk 0:01:46.8]} 22. Bxd2
{[%clk 0:01:48.1]} 22... Rxd2 {[%clk 0:01:45.5]} 23. Rac1 {[%clk 0:01:42.8]}
23... Rad8 {[%clk 0:01:37.8]} 24. f3 {[%clk 0:01:35.1]} 24... Kg7 {[%clk
0:01:29.9]} 25. Re2 {[%clk 0:01:20.5]} 25... Rxe2 {[%clk 0:01:27.9]} 26. Nxe2
{[%clk 0:01:20.5]} 26... Rd2 {[%clk 0:01:25.5]} 27. Nc3 {[%clk 0:01:13.4]} 27...
f5 {[%clk 0:01:18]} 28. Re1 {[%clk 0:01:06.7]} 28... Kf6 {[%clk 0:01:11.1]} 29.
exf5 {[%clk 0:01:02.2]} 29... gxf5 {[%clk 0:01:10.1]} 30. Re2 {[%clk 0:01:00.2]}
30... Rxe2 {[%clk 0:01:09.4]} 31. Nxe2 {[%clk 0:01:01.1]} 31... Ke6 {[%clk
0:01:00.3]} 32. Kf2 {[%clk 0:00:59.6]} 32... f4 {[%clk 0:00:51.1]} 33. g3 {[%clk
0:00:54.8]} 33... fxg3+ {[%clk 0:00:50.4]} 34. hxg3 {[%clk 0:00:55.7]} 34... h5
{[%clk 0:00:36.9]} 35. Ke3 {[%clk 0:00:54.5]} 35... Bg6 {[%clk 0:00:31]} 36. Nc3
{[%clk 0:00:51.7]} 36... Kd6 {[%clk 0:00:28.8]} 37. Ne4+ {[%clk 0:00:42.5]}
37... Kd5 {[%clk 0:00:27.4]} 38. Nc3+ {[%clk 0:00:40.2]} 38... Kc5 {[%clk
0:00:27.2]} 39. a3 {[%clk 0:00:40.6]} 39... Bc2 {[%clk 0:00:24.2]} 40. Ne4+
{[%clk 0:00:36.9]} 40... Kb6 {[%clk 0:00:20.7]} 41. b4 {[%clk 0:00:33.6]} 41...
axb4 {[%clk 0:00:19.9]} 42. axb4 {[%clk 0:00:33.8]} 42... Kb5 {[%clk 0:00:19.9]}
43. Nf6 {[%clk 0:00:29.1]} 43... Bg6 {[%clk 0:00:17.2]} 44. Nd7 {[%clk
0:00:29.3]} 44... Kxb4 {[%clk 0:00:15.6]} 45. Nxe5 {[%clk 0:00:29.3]} 45... Be8
{[%clk 0:00:15.5]} 46. f4 {[%clk 0:00:26.4]} 46... c5 {[%clk 0:00:15.7]} 47. f5
{[%clk 0:00:24.3]} 47... c4 {[%clk 0:00:15.7]} 48. Kd4 {[%clk 0:00:20.3]} 48...
c3 {[%clk 0:00:14.2]} 49. Nd3+ {[%clk 0:00:20.5]} 49... Kb3 {[%clk 0:00:13.7]}
50. Nc5+ {[%clk 0:00:18.8]} 50... Kb4 {[%clk 0:00:13]} 51. Nd3+ {[%clk
0:00:18.9]} 51... Kb3 {[%clk 0:00:13.2]} 52. Nc5+ {[%clk 0:00:18.8]} 52... Kb2
{[%clk 0:00:11.7]} 53. Nd3+ {[%clk 0:00:17.5]} 53... Kc2 {[%clk 0:00:09.3]} 54.
Nf4 {[%clk 0:00:10.1]} 54... Kd2 {[%clk 0:00:08.9]} 55. Nd3 {[%clk 0:00:08.3]}
55... c2 {[%clk 0:00:09]} 56. Nc5 {[%clk 0:00:08.4]} 56... Ke2 {[%clk
0:00:07.6]} 57. Nb3 {[%clk 0:00:08.6]} 57... Kf3 {[%clk 0:00:07.8]} 58. f6
{[%clk 0:00:06.5]} 58... Kxg3 {[%clk 0:00:07.5]} 59. Ke5 {[%clk 0:00:06.7]}
59... h4 {[%clk 0:00:07.1]} 60. Ke6 {[%clk 0:00:07]} 60... h3 {[%clk 0:00:06.8]}
61. Ke7 {[%clk 0:00:07.4]} 61... Bh5 {[%clk 0:00:06.9]} 62. Nc1 {[%clk
0:00:06.4]} 62... h2 {[%clk 0:00:06.5]} 63. Ne2+ {[%clk 0:00:05.7]} 63... Kf2
{[%clk 0:00:06.7]} 64. Nf4 {[%clk 0:00:05.1]} 64... h1=Q {[%clk 0:00:06.4]} 65.
Nd3+ {[%clk 0:00:05.4]} 65... Ke3 {[%clk 0:00:05.8]} 66. Ne5 {[%clk 0:00:06.3]}
66... Qe4 {[%clk 0:00:04.4]} 67. Kd6 {[%clk 0:00:06.5]} 67... Qxe5+ {[%clk
0:00:03.3]} 68. Kxe5 {[%clk 0:00:06.8]} 68... c1=Q {[%clk 0:00:03.7]} 69. Kf5
{[%clk 0:00:07.6]} 69... Qc5+ {[%clk 0:00:03.4]} 70. Ke6 {[%clk 0:00:07.6]}
70... Qf8 {[%clk 0:00:03.8]} 71. Kf5 {[%clk 0:00:07.7]} 71... Qf7 {[%clk
0:00:04.1]} 72. Ke5 {[%clk 0:00:08.6]} 72... Kf3 {[%clk 0:00:03.5]} 73. Kf5
{[%clk 0:00:09.5]} 73... Bg4+ {[%clk 0:00:03.4]} 74. Kg5 {[%clk 0:00:09.7]}
74... Ke4 {[%clk 0:00:03.3]} 75. Kh6 {[%clk 0:00:09.2]} 75... Qxf6+ {[%clk
0:00:03.9]} 76. Kh7 {[%clk 0:00:10.1]} 76... Bf5+ {[%clk 0:00:02.9]} 77. Kg8
{[%clk 0:00:11]} 77... Qe7 {[%clk 0:00:03.2]} 78. Kh8 {[%clk 0:00:10.9]} 78...
Qh7# {[%clk 0:00:03.9]} 0-1

[Event "Early-Titled-Tuesday-Blitz-March-05-2024"]
[Site "Chess.com"]
[Date "2024.03.05"]
[Round "5"]
[White "Actuary44"]
[Black "kids2010"]
[Result "0-1"]
[WhiteElo "2542"]
[BlackElo "2775"]
[TimeControl "180+1"]
[EndTime "8:59:48 PST"]
[Termination "kids2010 won by checkmate"]

1. e4 {[%clk 0:03:00.9]} 1... c6 {[%clk 0:02:58.8]} 2. d4 {[%clk 0:03:01]} 2...
d5 {[%clk 0:02:59.7]} 3. Nc3 {[%clk 0:03:01.6]} 3... dxe4 {[%clk 0:03:00.2]} 4.
Nxe4 {[%clk 0:03:02.5]} 4... Nf6 {[%clk 0:03:01]} 5. Ng3 {[%clk 0:03:02.6]} 5...
g6 {[%clk 0:03:00.9]} 6. Bc4 {[%clk 0:02:59.6]} 6... Bg7 {[%clk 0:03:01]} 7. c3
{[%clk 0:02:59.6]} 7... O-O {[%clk 0:03:01.6]} 8. Bg5 {[%clk 0:02:59.2]} 8...
Qa5 {[%clk 0:02:44.6]} 9. Qd2 {[%clk 0:02:58]} 9... Nbd7 {[%clk 0:02:38.7]} 10.
O-O-O {[%clk 0:02:51.1]} 10... b5 {[%clk 0:02:36.4]} 11. Bb3 {[%clk 0:02:51.1]}
11... Nb6 {[%clk 0:02:37.1]} 12. h4 {[%clk 0:02:46.2]} 12... h5 {[%clk
0:02:33.4]} 13. f3 {[%clk 0:02:40]} 13... Nc4 {[%clk 0:02:26.3]} 14. Bxc4 {[%clk
0:02:30.6]} 14... bxc4 {[%clk 0:02:27.2]} 15. a3 {[%clk 0:02:24.8]} 15... Nd5
{[%clk 0:02:16.8]} 16. N1e2 {[%clk 0:02:21.4]} 16... Rb8 {[%clk 0:02:16.2]} 17.
Bh6 {[%clk 0:02:13.9]} 17... Bf6 {[%clk 0:01:28]} 18. Bxf8 {[%clk 0:02:06.3]}
18... Kxf8 {[%clk 0:01:28.9]} 19. Ne4 {[%clk 0:02:06.3]} 19... Bf5 {[%clk
0:01:22.1]} 20. N2g3 {[%clk 0:01:59.9]} 20... Bg7 {[%clk 0:01:15.5]} 21. Nxf5
{[%clk 0:01:56.3]} 21... gxf5 {[%clk 0:01:16.4]} 22. Nc5 {[%clk 0:01:54]} 22...
Ke8 {[%clk 0:00:43]} 23. g4 {[%clk 0:01:48.9]} 23... fxg4 {[%clk 0:00:39.8]} 24.
fxg4 {[%clk 0:01:49.8]} 24... Qb5 {[%clk 0:00:39]} 25. Qc2 {[%clk 0:00:39.3]}
25... Ne3 {[%clk 0:00:24.5]} 26. Qe2 {[%clk 0:00:37.1]} 26... hxg4 {[%clk
0:00:20.6]} 27. Rd2 {[%clk 0:00:26.3]} 27... Bh6 {[%clk 0:00:20]} 28. Kb1 {[%clk
0:00:25.4]} 28... f5 {[%clk 0:00:18.7]} 29. Ne6 {[%clk 0:00:19.7]} 29... Nd5
{[%clk 0:00:15.1]} 30. Rc2 {[%clk 0:00:16.8]} 30... Kd7 {[%clk 0:00:14.2]} 31.
Nc5+ {[%clk 0:00:16.2]} 31... Kc7 {[%clk 0:00:14.1]} 32. Qe5+ {[%clk 0:00:10.4]}
32... Kd8 {[%clk 0:00:05.5]} 33. Qh8+ {[%clk 0:00:07.4]} 33... Kc7 {[%clk
0:00:05.7]} 34. Qxh6 {[%clk 0:00:05.4]} 34... f4 {[%clk 0:00:05.5]} 35. Ka1
{[%clk 0:00:03]} 35... g3 {[%clk 0:00:05.5]} 36. Qe6 {[%clk 0:00:03]} 36... Kb6
{[%clk 0:00:05.3]} 37. Qe5 {[%clk 0:00:03.1]} 37... Rc8 {[%clk 0:00:04.9]} 38.
Nd7+ {[%clk 0:00:03.5]} 38... Kb7 {[%clk 0:00:04.8]} 39. Nc5+ {[%clk 0:00:04.1]}
39... Ka8 {[%clk 0:00:05.4]} 40. h5 {[%clk 0:00:04.4]} 40... Ne3 {[%clk
0:00:05.1]} 41. Re2 {[%clk 0:00:03.8]} 41... Rb8 {[%clk 0:00:04.6]} 42. Rg1
{[%clk 0:00:01.6]} 42... f3 {[%clk 0:00:04.5]} 43. Qxe3 {[%clk 0:00:01.1]} 43...
fxe2 {[%clk 0:00:04]} 44. Qxe2 {[%clk 0:00:02]} 44... Rh8 {[%clk 0:00:03.7]} 45.
Rxg3 {[%clk 0:00:02]} 45... Kb8 {[%clk 0:00:03.7]} 46. h6 {[%clk 0:00:02.2]}
46... Ka8 {[%clk 0:00:04.2]} 47. Qe5 {[%clk 0:00:02]} 47... Rb8 {[%clk
0:00:03.6]} 48. Qh8 {[%clk 0:00:02.9]} 48... Rxh8 {[%clk 0:00:03.6]} 49. h7
{[%clk 0:00:02.8]} 49... Rxh7 {[%clk 0:00:03.9]} 50. Rg8+ {[%clk 0:00:03]} 50...
Qb8 {[%clk 0:00:04.7]} 51. Rxb8+ {[%clk 0:00:03.5]} 51... Kxb8 {[%clk
0:00:05.6]} 52. Nd7+ {[%clk 0:00:04]} 52... Kc7 {[%clk 0:00:05.5]} 53. Ne5
{[%clk 0:00:04.9]} 53... Rh1+ {[%clk 0:00:04.7]} 54. Ka2 {[%clk 0:00:04.6]}
54... Kd6 {[%clk 0:00:05.2]} 55. Nxc4+ {[%clk 0:00:05.1]} 55... Kd5 {[%clk
0:00:06]} 56. Ne3+ {[%clk 0:00:05.3]} 56... Ke4 {[%clk 0:00:06.8]} 57. Nc4
{[%clk 0:00:04.9]} 57... Kd3 {[%clk 0:00:07.3]} 58. Kb3 {[%clk 0:00:05.2]} 58...
Rh5 {[%clk 0:00:06.1]} 59. Ne5+ {[%clk 0:00:04.9]} 59... Kd2 {[%clk 0:00:06.6]}
60. Nxc6 {[%clk 0:00:05.1]} 60... Rb5+ {[%clk 0:00:07.2]} 61. Ka2 {[%clk
0:00:02.7]} 61... Kc1 {[%clk 0:00:06.8]} 62. b4 {[%clk 0:00:02.5]} 62... e6
{[%clk 0:00:06.2]} 63. Kb3 {[%clk 0:00:02.8]} 63... Kd2 {[%clk 0:00:05.7]} 64.
Nxa7 {[%clk 0:00:03]} 64... Rb7 {[%clk 0:00:06]} 65. Nc6 {[%clk 0:00:03.2]}
65... Rc7 {[%clk 0:00:06.3]} 66. Ne5 {[%clk 0:00:03.4]} 66... Rxc3+ {[%clk
0:00:06.8]} 67. Ka4 {[%clk 0:00:04]} 67... Ke3 {[%clk 0:00:06.6]} 68. Nd7 {[%clk
0:00:03.2]} 68... Kxd4 {[%clk 0:00:06.5]} 69. Nb6 {[%clk 0:00:03.2]} 69... e5
{[%clk 0:00:06.7]} 70. b5 {[%clk 0:00:02.9]} 70... e4 {[%clk 0:00:07.2]} 71. Kb4
{[%clk 0:00:03.5]} 71... e3 {[%clk 0:00:06.6]} 72. Na4 {[%clk 0:00:04.1]} 72...
Rc1 {[%clk 0:00:06.4]} 73. Nb2 {[%clk 0:00:02.1]} 73... Rb1 {[%clk 0:00:06]} 74.
b6 {[%clk 0:00:03]} 74... Rxb2+ {[%clk 0:00:06.3]} 75. Ka5 {[%clk 0:00:03.9]}
75... e2 {[%clk 0:00:06.4]} 76. b7 {[%clk 0:00:04.2]} 76... Rxb7 {[%clk
0:00:06.4]} 77. Ka4 {[%clk 0:00:04.7]} 77... Rb1 {[%clk 0:00:07.3]} 78. Ka5
{[%clk 0:00:04.9]} 78... e1=Q+ {[%clk 0:00:07.8]} 79. Ka4 {[%clk 0:00:05.8]}
79... Qd1+ {[%clk 0:00:07.8]} 80. Ka5 {[%clk 0:00:06]} 80... Qb3 {[%clk
0:00:08.7]} 81. Ka6 {[%clk 0:00:06.4]} 81... Qb6# {[%clk 0:00:09.1]} 0-1

[Event "Early-Titled-Tuesday-Blitz-March-05-2024"]
[Site "Chess.com"]
[Date "2024.03.05"]
[Round "5"]
[White "verrbaa"]
[Black "Meri-Arabidze"]
[Result "1-0"]
[WhiteElo "2523"]
[BlackElo "2694"]
[TimeControl "180+1"]
[EndTime "8:59:50 PST"]
[Termination "verrbaa won on time"]

1. e4 {[%clk 0:03:00.9]} 1... c5 {[%clk 0:02:58]} 2. Nf3 {[%clk 0:03:00.4]} 2...
e6 {[%clk 0:02:58.4]} 3. d4 {[%clk 0:03:00.2]} 3... cxd4 {[%clk 0:02:59.3]} 4.
Nxd4 {[%clk 0:03:00.7]} 4... Nc6 {[%clk 0:02:59.9]} 5. Nc3 {[%clk 0:03:00.9]}
5... a6 {[%clk 0:02:59.6]} 6. Nxc6 {[%clk 0:02:53.6]} 6... bxc6 {[%clk
0:03:00.5]} 7. Qf3 {[%clk 0:02:53.8]} 7... d5 {[%clk 0:02:55.9]} 8. Qg3 {[%clk
0:02:53.5]} 8... Nf6 {[%clk 0:02:54.6]} 9. e5 {[%clk 0:02:45.1]} 9... Nd7 {[%clk
0:02:54.1]} 10. Be2 {[%clk 0:02:40.9]} 10... Qc7 {[%clk 0:02:53.8]} 11. Bf4
{[%clk 0:02:37.7]} 11... h6 {[%clk 0:02:42.6]} 12. h4 {[%clk 0:02:31.3]} 12...
g6 {[%clk 0:02:37.9]} 13. Bd3 {[%clk 0:02:01.8]} 13... Bg7 {[%clk 0:02:37.1]}
14. Bxg6 {[%clk 0:01:50]} 14... Bxe5 {[%clk 0:02:36.5]} 15. Bxe5 {[%clk
0:01:44.9]} 15... Qxe5+ {[%clk 0:02:37.4]} 16. Qxe5 {[%clk 0:01:44.9]} 16...
Nxe5 {[%clk 0:02:38.3]} 17. Bh5 {[%clk 0:01:43.5]} 17... Rg8 {[%clk 0:02:34.4]}
18. g3 {[%clk 0:01:42.5]} 18... c5 {[%clk 0:02:26.4]} 19. O-O-O {[%clk
0:01:39.1]} 19... Bb7 {[%clk 0:02:25.4]} 20. Rhe1 {[%clk 0:01:38.2]} 20... Ng6
{[%clk 0:02:01.1]} 21. Nxd5 {[%clk 0:01:35.2]} 21... Bxd5 {[%clk 0:01:55.6]} 22.
Rxd5 {[%clk 0:01:34.6]} 22... Rc8 {[%clk 0:01:50.9]} 23. Rd6 {[%clk 0:01:33.7]}
23... a5 {[%clk 0:01:43.3]} 24. Ra6 {[%clk 0:01:31]} 24... Ke7 {[%clk
0:01:43.1]} 25. Ra7+ {[%clk 0:01:26.2]} 25... Kf6 {[%clk 0:01:43.1]} 26. Rxa5
{[%clk 0:01:11.2]} 26... Ne5 {[%clk 0:01:41]} 27. Ra7 {[%clk 0:01:07.8]} 27...
Rg7 {[%clk 0:01:40.2]} 28. a4 {[%clk 0:01:05.4]} 28... Nc6 {[%clk 0:01:35.9]}
29. Rb7 {[%clk 0:01:02.1]} 29... Nd4 {[%clk 0:01:30.4]} 30. Re3 {[%clk
0:00:58.5]} 30... c4 {[%clk 0:01:26.9]} 31. Rd7 {[%clk 0:00:53]} 31... Nf5
{[%clk 0:01:20.7]} 32. Re4 {[%clk 0:00:53.2]} 32... e5 {[%clk 0:01:09.3]} 33. c3
{[%clk 0:00:51.4]} 33... Ke6 {[%clk 0:01:08.1]} 34. Ra7 {[%clk 0:00:46.1]} 34...
Nd6 {[%clk 0:01:06.8]} 35. Re2 {[%clk 0:00:44]} 35... Rgg8 {[%clk 0:01:02.6]}
36. Ra6 {[%clk 0:00:40.8]} 36... f5 {[%clk 0:00:51.2]} 37. Bf7+ {[%clk
0:00:37.6]} 37... Kxf7 {[%clk 0:00:48.1]} 38. Rxd6 {[%clk 0:00:37.8]} 38... e4
{[%clk 0:00:45.8]} 39. Rxh6 {[%clk 0:00:37.3]} 39... Ra8 {[%clk 0:00:41]} 40.
Rd2 {[%clk 0:00:29.1]} 40... Ke7 {[%clk 0:00:21.8]} 41. Rd4 {[%clk 0:00:27.5]}
41... Rxa4 {[%clk 0:00:20.5]} 42. Rc6 {[%clk 0:00:22.5]} 42... Rb8 {[%clk
0:00:18.2]} 43. Rcxc4 {[%clk 0:00:22.6]} 43... Ra1+ {[%clk 0:00:17.8]} 44. Kc2
{[%clk 0:00:22.7]} 44... Rf1 {[%clk 0:00:13.3]} 45. Rd2 {[%clk 0:00:22.1]} 45...
Ra8 {[%clk 0:00:10.9]} 46. Rc6 {[%clk 0:00:11.9]} 46... Raa1 {[%clk 0:00:07.9]}
47. h5 {[%clk 0:00:11.9]} 47... Rac1+ {[%clk 0:00:07.7]} 48. Kb3 {[%clk
0:00:12]} 48... Rh1 {[%clk 0:00:08.2]} 49. h6 {[%clk 0:00:12]} 49... Rcf1 {[%clk
0:00:06.1]} 50. Kb4 {[%clk 0:00:05.9]} 50... Rh2 {[%clk 0:00:06.5]} 51. Rd5
{[%clk 0:00:03.8]} 51... Rfxf2 {[%clk 0:00:06.2]} 52. b3 {[%clk 0:00:04.3]}
52... Rf3 {[%clk 0:00:04.8]} 53. Rb5 {[%clk 0:00:04.2]} 53... Rd3 {[%clk
0:00:03.6]} 54. Rb7+ {[%clk 0:00:04]} 54... Rd7 {[%clk 0:00:03.9]} 55. Rxd7+
{[%clk 0:00:03.6]} 55... Kxd7 {[%clk 0:00:04.8]} 56. Rf6 {[%clk 0:00:03.9]}
56... e3 {[%clk 0:00:05.2]} 57. Rxf5 {[%clk 0:00:03.7]} 57... Kd6 {[%clk
0:00:05.8]} 58. Rf4 {[%clk 0:00:03.5]} 58... Ke5 {[%clk 0:00:05.1]} 59. Rf8
{[%clk 0:00:03.2]} 59... Ke4 {[%clk 0:00:04.2]} 60. Re8+ {[%clk 0:00:02.5]}
60... Kd3 {[%clk 0:00:04.7]} 61. c4 {[%clk 0:00:03.1]} 61... Rxh6 {[%clk
0:00:03.9]} 62. c5 {[%clk 0:00:03.3]} 62... e2 {[%clk 0:00:04.4]} 63. Kb5 {[%clk
0:00:03.7]} 63... Rh3 {[%clk 0:00:04]} 64. c6 {[%clk 0:00:03.9]} 64... Rxg3
{[%clk 0:00:04.4]} 65. c7 {[%clk 0:00:04.4]} 65... Rg5+ {[%clk 0:00:02.5]} 66.
Kb6 {[%clk 0:00:04.4]} 66... Rg6+ {[%clk 0:00:01.9]} 67. Kb5 {[%clk 0:00:04.5]}
67... Rg5+ {[%clk 0:00:01.9]} 68. Kb6 {[%clk 0:00:05]} 68... Rg6+ {[%clk
0:00:02.3]} 69. Kb7 {[%clk 0:00:03.2]} 69... Rg7 {[%clk 0:00:02.8]} 70. Kb8
{[%clk 0:00:03.4]} 70... Rg8 {[%clk 0:00:02.2]} 71. Rxg8 {[%clk 0:00:02.6]}
71... e1=Q {[%clk 0:00:02.2]} 72. c8=Q {[%clk 0:00:02.7]} 72... Qb4+ {[%clk
0:00:01.2]} 73. Qb7 {[%clk 0:00:03.1]} 73... Qf4+ {[%clk 0:00:01.3]} 74. Kc8
{[%clk 0:00:02.7]} 74... Qf5+ {[%clk 0:00:01.3]} 75. Qd7+ {[%clk 0:00:02.8]} 1-0

[Event "Early-Titled-Tuesday-Blitz-March-05-2024"]
[Site "Chess.com"]
[Date "2024.03.05"]
[Round "5"]
[White "erlesfar"]
[Black "bylavochka"]
[Result "0-1"]
[WhiteElo "2424"]
[BlackElo "2316"]
[TimeControl "180+1"]
[EndTime "8:59:50 PST"]
[Termination "bylavochka won by checkmate"]

1. e4 {[%clk 0:02:36.1]} 1... c5 {[%clk 0:02:59.9]} 2. Nf3 {[%clk 0:02:35.1]}
2... d6 {[%clk 0:03:00.2]} 3. d4 {[%clk 0:02:35.1]} 3... cxd4 {[%clk 0:03:01.1]}
4. Nxd4 {[%clk 0:02:35.9]} 4... Nf6 {[%clk 0:03:01.7]} 5. Nc3 {[%clk 0:02:35.8]}
5... g6 {[%clk 0:03:02.3]} 6. Be3 {[%clk 0:02:34.4]} 6... Bg7 {[%clk 0:03:02.8]}
7. f3 {[%clk 0:02:34.5]} 7... Nc6 {[%clk 0:03:03.4]} 8. Bc4 {[%clk 0:02:33.6]}
8... O-O {[%clk 0:03:03.2]} 9. Qd2 {[%clk 0:02:33.6]} 9... Bd7 {[%clk
0:03:03.7]} 10. O-O-O {[%clk 0:02:31.9]} 10... Qa5 {[%clk 0:03:02.7]} 11. g4
{[%clk 0:02:28.6]} 11... Rfc8 {[%clk 0:03:02.7]} 12. Bb3 {[%clk 0:02:26.9]}
12... Ne5 {[%clk 0:03:02.5]} 13. Qe2 {[%clk 0:02:21.5]} 13... Rxc3 {[%clk
0:02:27.5]} 14. bxc3 {[%clk 0:02:12.8]} 14... Qxc3 {[%clk 0:02:23.4]} 15. Kb1
{[%clk 0:02:11.1]} 15... a5 {[%clk 0:01:16.5]} 16. a4 {[%clk 0:01:45.1]} 16...
Qb4 {[%clk 0:00:59]} 17. Nb5 {[%clk 0:01:33.4]} 17... Bxb5 {[%clk 0:00:47.7]}
18. Qxb5 {[%clk 0:01:30]} 18... Qxb5 {[%clk 0:00:47.4]} 19. axb5 {[%clk
0:01:29.6]} 19... Nxf3 {[%clk 0:00:35.2]} 20. g5 {[%clk 0:01:26.9]} 20... Nxe4
{[%clk 0:00:32.3]} 21. Bd5 {[%clk 0:01:25.4]} 21... Nfxg5 {[%clk 0:00:19.9]} 22.
Bxb7 {[%clk 0:01:17.2]} 22... Rb8 {[%clk 0:00:19.8]} 23. Bc6 {[%clk 0:01:13.3]}
23... Nc3+ {[%clk 0:00:19.8]} 24. Kc1 {[%clk 0:01:11.7]} 24... Ne6 {[%clk
0:00:14.1]} 25. b6 {[%clk 0:01:04.2]} 25... Nxd1 {[%clk 0:00:04.2]} 26. Rxd1
{[%clk 0:01:00.6]} 26... Nd8 {[%clk 0:00:04.7]} 27. Bf3 {[%clk 0:00:56.1]} 27...
a4 {[%clk 0:00:03.9]} 28. Kb1 {[%clk 0:00:47.5]} 28... Nb7 {[%clk 0:00:04.2]}
29. Bxb7 {[%clk 0:00:44.9]} 29... Rxb7 {[%clk 0:00:04.4]} 30. Ka2 {[%clk
0:00:44.1]} 30... Bc3 {[%clk 0:00:03.4]} 31. Rd5 {[%clk 0:00:42.7]} 31... Kf8
{[%clk 0:00:01.7]} 32. Rb5 {[%clk 0:00:37.8]} 32... Ke8 {[%clk 0:00:02]} 33. Ka3
{[%clk 0:00:37]} 33... Kd7 {[%clk 0:00:02.7]} 34. Kxa4 {[%clk 0:00:36.7]} 34...
Kc6 {[%clk 0:00:03]} 35. Rb3 {[%clk 0:00:35.2]} 35... Be5 {[%clk 0:00:03.9]} 36.
Rb4 {[%clk 0:00:32.3]} 36... d5 {[%clk 0:00:04]} 37. Rb5 {[%clk 0:00:31.3]}
37... Bd6 {[%clk 0:00:03.8]} 38. Ka5 {[%clk 0:00:29.4]} 38... e5 {[%clk
0:00:04.1]} 39. Ka6 {[%clk 0:00:18.4]} 39... d4 {[%clk 0:00:04.5]} 40. Bd2
{[%clk 0:00:18.1]} 40... Bc5 {[%clk 0:00:05.2]} 41. Rxc5+ {[%clk 0:00:16.7]}
41... Kxc5 {[%clk 0:00:01.2]} 42. Kxb7 {[%clk 0:00:17.6]} 42... e4 {[%clk
0:00:01.8]} 43. Kc7 {[%clk 0:00:16.5]} 43... e3 {[%clk 0:00:02.7]} 44. Bxe3
{[%clk 0:00:16.5]} 44... dxe3 {[%clk 0:00:02.9]} 45. b7 {[%clk 0:00:17.4]} 45...
e2 {[%clk 0:00:03.6]} 46. b8=Q {[%clk 0:00:17.6]} 46... e1=Q {[%clk 0:00:04.5]}
47. Qb6+ {[%clk 0:00:17.4]} 47... Kc4 {[%clk 0:00:04.1]} 48. Qb3+ {[%clk
0:00:15.3]} 48... Kd4 {[%clk 0:00:04]} 49. Qd3+ {[%clk 0:00:12.2]} 49... Ke5
{[%clk 0:00:03.9]} 50. Qd6+ {[%clk 0:00:11.1]} 50... Kf5 {[%clk 0:00:03.4]} 51.
Qc5+ {[%clk 0:00:09.2]} 51... Ke6 {[%clk 0:00:02.6]} 52. Qc6+ {[%clk 0:00:06.5]}
52... Ke7 {[%clk 0:00:03]} 53. Qc5+ {[%clk 0:00:05.3]} 53... Ke8 {[%clk
0:00:02.8]} 54. Qc6+ {[%clk 0:00:04.5]} 54... Kf8 {[%clk 0:00:03]} 55. Qc5+
{[%clk 0:00:04.8]} 55... Qe7+ {[%clk 0:00:02.3]} 56. Qxe7+ {[%clk 0:00:03.8]}
56... Kxe7 {[%clk 0:00:03.2]} 57. Kb7 {[%clk 0:00:02.8]} 57... f5 {[%clk
0:00:03.8]} 58. c4 {[%clk 0:00:03.4]} 58... f4 {[%clk 0:00:04.7]} 59. c5 {[%clk
0:00:04.3]} 59... f3 {[%clk 0:00:05.6]} 60. c6 {[%clk 0:00:05.2]} 60... f2
{[%clk 0:00:06.4]} 61. c7 {[%clk 0:00:05.6]} 61... f1=Q {[%clk 0:00:07.3]} 62.
c8=Q {[%clk 0:00:06.5]} 62... Qb1+ {[%clk 0:00:07.3]} 63. Ka6 {[%clk 0:00:06.2]}
63... Qa2+ {[%clk 0:00:07.8]} 64. Kb6 {[%clk 0:00:05.7]} 64... Qe6+ {[%clk
0:00:07.9]} 65. Qxe6+ {[%clk 0:00:05.1]} 65... Kxe6 {[%clk 0:00:08.8]} 66. Kc5
{[%clk 0:00:05.4]} 66... Kf5 {[%clk 0:00:09]} 67. Kd4 {[%clk 0:00:06.3]} 67...
Kg4 {[%clk 0:00:09.5]} 68. Ke3 {[%clk 0:00:05.1]} 68... Kh3 {[%clk 0:00:09.4]}
69. Kf2 {[%clk 0:00:05.8]} 69... Kxh2 {[%clk 0:00:08.9]} 70. Kf3 {[%clk
0:00:06.7]} 70... Kh3 {[%clk 0:00:08.7]} 71. Kf4 {[%clk 0:00:07.1]} 71... Kh4
{[%clk 0:00:09.1]} 72. Kf3 {[%clk 0:00:07.5]} 72... g5 {[%clk 0:00:09.8]} 73.
Kg2 {[%clk 0:00:07.8]} 73... g4 {[%clk 0:00:10.7]} 74. Kh2 {[%clk 0:00:08.7]}
74... Kg5 {[%clk 0:00:11.6]} 75. Kg2 {[%clk 0:00:09.6]} 75... h5 {[%clk
0:00:12.4]} 76. Kh2 {[%clk 0:00:10.5]} 76... h4 {[%clk 0:00:13.3]} 77. Kg2
{[%clk 0:00:11.4]} 77... Kf4 {[%clk 0:00:14.2]} 78. Kh2 {[%clk 0:00:12.2]} 78...
Kf3 {[%clk 0:00:13.7]} 79. Kh1 {[%clk 0:00:12.2]} 79... g3 {[%clk 0:00:13.6]}
80. Kg1 {[%clk 0:00:13.1]} 80... g2 {[%clk 0:00:13.3]} 81. Kh2 {[%clk
0:00:09.9]} 81... Kf2 {[%clk 0:00:13.8]} 82. Kh3 {[%clk 0:00:09.9]} 82... g1=Q
{[%clk 0:00:14.7]} 83. Kxh4 {[%clk 0:00:09.9]} 83... Qg3+ {[%clk 0:00:15.6]} 84.
Kh5 {[%clk 0:00:09]} 84... Kf3 {[%clk 0:00:16.5]} 85. Kh6 {[%clk 0:00:09.5]}
85... Kf4 {[%clk 0:00:17.4]} 86. Kh7 {[%clk 0:00:09.4]} 86... Kf5 {[%clk
0:00:18.3]} 87. Kh8 {[%clk 0:00:10.3]} 87... Kf6 {[%clk 0:00:18.8]} 88. Kh7
{[%clk 0:00:11.1]} 88... Qg7# {[%clk 0:00:19.5]} 0-1